fUST/lending_fUST_20240809
["ID","MTS","AMOUNT","RATE_DAILY","PERIOD"]
[334556338,1723206640601,-153.0,0.00021096,2]
[334556339,1723206640610,-153.0,0.00021096,2]
[334556340,1723206640619,-153.0,0.00021096,2]
[334556341,1723206640629,-300.0,0.00021403,2]
[334556342,1723206640640,-4808.48585344,0.00021404,2]
[334556343,1723206640650,-153.0,0.000215,2]
[334556344,1723206640661,-153.0,0.0002155,2]
[334556345,1723206640671,-153.0,0.0002155,2]
[334556346,1723206640680,-153.0,0.0002155,2]
[334556347,1723206640689,-153.0,0.0002155,2]
[334556348,1723206640699,-153.0,0.0002155,2]
[334556349,1723206640709,-2393.91992407,0.00021706,2]
[334556350,1723206640719,-626.89446832,0.00021795,2]
[334556351,1723206640730,-626.89446832,0.00021801,2]
[334556352,1723206640739,-22672.07990458,0.00021801,3]
[334556391,1723206646654,-153.0,0.00021096,2]
[334556392,1723206646663,-4643.11245362,0.00021801,3]
[334556393,1723206646673,-626.89446832,0.00021806,2]
[334556394,1723206646683,-12640.38108741,0.00021807,2]
[334556395,1723206646693,-626.89446832,0.00021812,2]
[334556396,1723206646702,-626.89446832,0.00021817,2]
[334556397,1723206646712,-3648.26275797,0.00021817,2]
[334556398,1723206646721,-4718.51677069,0.00021875,3]
[334556401,1723206827549,160.037414,0.00014247,2]
[334556407,1723207363675,160.294877,0.00014247,2]
[334556507,1723207838873,-223.71254295,0.00016532,2]
[334556509,1723207838883,-313.20952962,0.00017269,2]
[334556511,1723207838892,-1364.15976013,0.00019256,2]
[334556513,1723207838902,-293.34672077,0.0002,2]
[334556515,1723207838912,-154.77557542,0.0002,2]
[334556517,1723207838922,-336.38121722,0.0002,2]
[334556519,1723207838931,-154.77557542,0.0002028,2]
[334556521,1723207838943,-1463.2258564,0.00020354,2]
[334556523,1723207838952,-153.0,0.00021041,2]
[334556525,1723207838963,-153.0,0.00021041,2]
[334556527,1723207838973,-153.0,0.00021041,2]
[334556529,1723207838984,-306.0,0.00021041,2]
[334556531,1723207838995,-306.0,0.0002137,2]
[334556533,1723207839010,-300.0,0.00021383,2]
[334556535,1723207839020,-631.77085297,0.00021384,2]
[334556537,1723207839030,-4808.48585344,0.00021396,2]
[334556539,1723207839040,-349.90524,0.000216,2]
[334556541,1723207839050,-153.0,0.000216,2]
[334556544,1723207839059,-2393.91992407,0.00021692,2]
[334556545,1723207839069,-153.0,0.000217,2]
[334556547,1723207839079,-153.0,0.000217,2]
[334556550,1723207839088,-791.19546107,0.00021717,2]
[334556552,1723207839098,-791.19546103,0.00021742,2]
[334556554,1723207839107,-791.19546103,0.00021767,2]
[334556556,1723207839116,-31218.6817841,0.0002179,3]
[334556558,1723207839126,-791.19546103,0.00021792,2]
[334556560,1723207839136,-2000.0,0.00021797,2]
[334556562,1723207839145,-29044.28573588,0.000218,11]
[334556564,1723207839155,-150.112233,0.000218,4]
[334556566,1723207839165,-150.112233,0.000218,4]
[334556568,1723207839176,-67908.70408301,0.000218,3]
[334556570,1723207839185,-3283.43648211,0.00021814,2]
[334556572,1723207839194,-791.19546103,0.00021817,2]
[334556574,1723207839205,-294.5666805,0.00021863,2]
[334556576,1723207839216,-153.2214191,0.00021863,2]
[334556578,1723207839226,-153.0,0.00021863,2]
[334556580,1723207839236,-294.5666805,0.00021863,2]
[334556582,1723207839246,-153.0,0.00021863,2]
[334556584,1723207839256,-153.0,0.00021863,2]
[334556587,1723207839268,-294.5666805,0.00021863,2]
[334556589,1723207839278,-294.5666805,0.00021863,2]
[334556591,1723207839288,-153.0,0.00021863,2]
[334556593,1723207839298,-153.0,0.00021863,2]
[334556595,1723207839307,-153.0,0.00021863,2]
[334556597,1723207839318,-294.5666805,0.00021863,2]
[334556599,1723207839329,-10493.07332189,0.00021875,2]
[334556601,1723207839339,-4184.36415148,0.00021875,2]
[334556603,1723207839348,-1626.92608275,0.00021875,2]
[334556605,1723207839358,-182.28089205,0.00021876,2]
[334556606,1723207839369,-62437.3635681,0.00021877,3]
[334556608,1723207839379,-31218.6817841,0.0002188,3]
[334556610,1723207839389,-72024.35724165,0.00021889,11]
[334556612,1723207839398,-17358.51293702,0.0002189,3]
[334556615,1723207839411,-6054.548213,0.0002189,3]
[334556798,1723207841307,-426.03916053,0.0002189,3]
[334556801,1723207841320,-36126.12491459,0.0002189,3]
[334556842,1723207846952,-153.0,0.00021041,2]
[334556843,1723207846962,-151.0,0.00021889,2]
[334556844,1723207846972,-2472.13834296,0.0002189,3]
[334556845,1723207846981,-880.095792,0.0002189,2]
[334556846,1723207846991,-880.095792,0.0002189,2]
[334556847,1723207847001,-151.0,0.0002189,2]
[334556848,1723207847010,-151.0,0.0002189,2]
[334556849,1723207847019,-151.0,0.0002189,2]
[334556850,1723207847029,-185.278907,0.0002189,2]
[334556851,1723207847038,-151.0,0.0002189,2]
[334556852,1723207847047,-185.278907,0.0002189,2]
[334556853,1723207847057,-151.0,0.0002189,2]
[334556854,1723207847067,-151.0,0.0002189,2]
[334556855,1723207847076,-151.0,0.0002189,2]
[334556856,1723207847085,-234.39323,0.0002189,2]
[334556857,1723207847094,-192.18195368,0.0002189,2]
[334556858,1723207847106,-106.27575532,0.0002189,2]
[334556859,1723207847115,-234.39323,0.0002189,2]
[334556860,1723207847125,-834.60449378,0.0002189,2]
[334556861,1723207847136,-1875.18605822,0.0002189,2]
[334556862,1723207847146,-2709.790552,0.0002189,2]
[334556863,1723207847155,-151.0,0.0002189,2]
[334556864,1723207847164,-151.0,0.0002189,2]
[334556865,1723207847174,-151.0,0.0002189,2]
[334556866,1723207847183,-275.67371,0.0002189,2]
[334556867,1723207847192,-275.67371,0.0002189,2]
[334556868,1723207847201,-151.0,0.0002189,2]
[334556869,1723207847212,-153.451263,0.0002189,2]
[334556870,1723207847221,-153.451263,0.0002189,2]
[334556871,1723207847230,-795.497352,0.0002189,2]
[334556872,1723207847240,-795.497352,0.0002189,2]
[334556873,1723207847249,-320.224247,0.0002189,2]
[334556874,1723207847258,-320.224247,0.0002189,2]
[334556875,1723207847267,-283.3147,0.0002189,2]
[334556876,1723207847276,-351.048483,0.0002189,2]
[334556877,1723207847285,-283.3147,0.0002189,2]
[334556878,1723207847295,-351.048483,0.0002189,2]
[334556879,1723207847304,-888.714732,0.0002189,2]
[334556880,1723207847313,-966.087622,0.0002189,2]
[334556881,1723207847322,-151.0,0.0002189,2]
[334556882,1723207847331,-888.714732,0.0002189,2]
[334556883,1723207847341,-151.0,0.0002189,2]
[334556884,1723207847350,-966.087622,0.0002189,2]
[334556885,1723207847359,-151.0,0.0002189,2]
[334556886,1723207847368,-211.481243,0.0002189,2]
[334556887,1723207847377,-211.481243,0.0002189,2]
[334556888,1723207847386,-151.0,0.0002189,2]
[334556889,1723207847396,-31218.6817841,0.00021896,3]
[334556890,1723207847405,-151.0,0.00021896,2]
[334556891,1723207847414,-31218.6817841,0.00021897,3]
[334556892,1723207847423,-151.0,0.00021897,2]
[334556893,1723207847433,-1039.694965,0.00021897,2]
[334556894,1723207847442,-1039.694965,0.00021897,2]
[334556895,1723207847451,-1039.694965,0.00021897,2]
[334556896,1723207847460,-1039.694965,0.00021897,2]
[334556897,1723207847470,-151.0,0.00021897,2]
[334556898,1723207847479,-151.0,0.00021897,2]
[334556899,1723207847489,-151.0,0.00021897,2]
[334556900,1723207847498,-151.0,0.00021897,2]
[334556901,1723207847507,-250.276668,0.00021897,2]
[334556902,1723207847516,-880.095792,0.00021897,2]
[334556903,1723207847525,-880.095792,0.00021897,2]
[334556904,1723207847535,-151.0,0.00021897,2]
[334556905,1723207847546,-185.278907,0.00021897,2]
[334556906,1723207847556,-185.278907,0.00021897,2]
[334556907,1723207847566,-151.0,0.00021897,2]
[334556908,1723207847578,-185.278907,0.00021897,2]
[334556909,1723207847587,-185.278907,0.00021897,2]
[334556910,1723207847829,-151.0,0.00021897,2]
[334556911,1723207847839,-234.39323,0.00021897,2]
[334556912,1723207847849,-234.39323,0.00021897,2]
[334556913,1723207847859,-298.457709,0.00021897,2]
[334556914,1723207847868,-298.457709,0.00021897,2]
[334556915,1723207847879,-234.39323,0.00021897,2]
[334556916,1723207847888,-234.39323,0.00021897,2]
[334556917,1723207847899,-906.23878158,0.00021897,2]
[334556928,1723208369085,160.465018,0.00014247,2]
[334556932,1723208875787,14000.0,0.00027,120]
[334556934,1723208961164,-197.99999011,0.00017019,2]
[334556935,1723208961186,-1364.15976013,0.00019547,2]
[334557029,1723209032182,-164.3111324,0.00019739,2]
[334557031,1723209032192,-2640.93635017,0.000199,2]
[334557155,1723209045939,-3.2506194,0.000199,2]
[334557156,1723209045951,-2510.57903343,0.0002,2]
[334557157,1723209045962,-154.79103211,0.0002,2]
[334557158,1723209045974,-300.0,0.00020072,2]
[334557159,1723209045985,-13763.32931506,0.00020073,2]
[334557160,1723209046001,-1000.0,0.00020073,2]
[334557161,1723209105036,220.56828526,0.00019547,2]
[334557162,1723209134987,78.94041958,0.00027,120]
[334557163,1723209142792,1520.5890438,0.00019396,2]
[334557165,1723209311700,160.465018,0.00014247,2]
[334557268,1723210238332,-309.55115084,0.0001611,2]
[334557269,1723210238342,-9836.7582522,0.00018771,2]
[334557270,1723210238351,-1364.15976013,0.00019167,2]
[334557271,1723210238364,-2770.3078456,0.00019256,2]
[334557272,1723210238375,-4808.48585344,0.00019738,2]
[334557273,1723210238385,-300.0,0.00019889,2]
[334557274,1723210238394,-233.0,0.00019889,2]
[334557275,1723210238404,-2435.50843918,0.0001989,2]
[334557276,1723210238414,-29044.28573588,0.000199,11]
[334557277,1723210238423,-3802.92196685,0.000199,2]
[334557278,1723210238433,-86725.6264714,0.0001999,2]
[334557279,1723210238443,-295.65829708,0.00019999,2]
[334557280,1723210238452,-182.28089205,0.00019999,2]
[334557281,1723210238462,-336.38121722,0.0002,2]
[334557282,1723210238471,-98766.64434872,0.0002,2]
[334557283,1723210238481,-40288.846061,0.0002,2]
[334557284,1723210238491,-435.0,0.0002,2]
[334557285,1723210238501,-188.09055485,0.0002,2]
[334557286,1723210238510,-171.47295014,0.0002,2]
[334557287,1723210238520,-427.12199975,0.0002,2]
[334557288,1723210238529,-154.79103211,0.0002,2]
[334557289,1723210238539,-163.65451499,0.0002,2]
[334557290,1723210238548,-294.28393168,0.0002,2]
[334557291,1723210238558,-997.79036029,0.0002,2]
[334557292,1723210238568,-150.112234,0.0002,2]
[334557293,1723210238578,-151.0,0.0002,2]
[334557294,1723210238588,-153.0,0.0002,2]
[334557295,1723210238597,-151.0,0.0002,2]
[334557296,1723210238607,-253.689052,0.0002,2]
[334557297,1723210238621,-253.689052,0.0002,2]
[334557298,1723210238631,-164.075261,0.0002,2]
[334557299,1723210238640,-164.075261,0.0002,2]
[334557300,1723210238650,-151.0,0.0002,2]
[334557301,1723210238660,-190.333119,0.0002,2]
[334557302,1723210238669,-190.333119,0.0002,2]
[334557303,1723210238679,-2393.499558,0.0002,2]
[334557304,1723210238689,-2393.499558,0.0002,2]
[334557305,1723210238700,-154.79103211,0.0002,2]
[334557306,1723210238710,-156.45284227,0.0002,2]
[334557307,1723210238719,-1771.7300395,0.0002,2]
[334557308,1723210238730,-704.076634,0.0002,2]
[334557309,1723210238739,-153.0,0.00020041,2]
[334557310,1723210238749,-153.0,0.00020041,2]
[334557311,1723210238758,-72024.35724165,0.00020073,11]
[334557312,1723210238768,-1626.92608275,0.00020073,2]
[334557313,1723210238778,-4184.36415148,0.00020073,2]
[334557314,1723210238787,-10493.07332189,0.00020073,2]
[334557315,1723210238797,-153.0,0.000201,2]
[334557316,1723210238807,-153.0,0.000201,2]
[334557317,1723210238816,-153.0,0.000201,2]
[334557318,1723210238826,-704.076634,0.00020256,2]
[334557319,1723210238836,-153.0,0.00020256,2]
[334557320,1723210238845,-294.5666805,0.00020256,2]
[334557321,1723210238856,-153.0,0.00020256,2]
[334557322,1723210238869,-294.5666805,0.00020256,2]
[334557323,1723210238879,-294.5666805,0.00020256,2]
[334557324,1723210238889,-153.0,0.00020256,2]
[334557325,1723210238898,-294.5666805,0.00020256,2]
[334557326,1723210238908,-153.0,0.00020256,2]
[334557327,1723210238917,-294.5666805,0.00020256,2]
[334557328,1723210238927,-294.5666805,0.00020256,2]
[334557329,1723210238936,-306.0,0.00020256,2]
[334557330,1723210238948,-294.5666805,0.000203,2]
[334557331,1723210238958,-153.0,0.000203,2]
[334557332,1723210238969,-153.0,0.000203,2]
[334557333,1723210238979,-799.843258,0.000203,2]
[334557334,1723210238989,-799.843258,0.000203,2]
[334557335,1723210238998,-3802.92196681,0.0002035,2]
[334557336,1723210239009,-28908.5421571,0.0002049,2]
[334557337,1723210239020,-704.076634,0.0002049,2]
[334557338,1723210239030,-169.221072,0.00020496,2]
[334557339,1723210239041,-153.0,0.000205,2]
[334557340,1723210239050,-153.0,0.000205,2]
[334557341,1723210239060,-294.5666805,0.000205,2]
[334557342,1723210239071,-294.5666805,0.000205,2]
[334557343,1723210239081,-153.0,0.000205,2]
[334557344,1723210239090,-153.0,0.000205,2]
[334557345,1723210239100,-186.928441,0.000205,2]
[334557346,1723210239110,-186.928441,0.000205,2]
[334557347,1723210239122,-715.947617,0.000205,2]
[334557348,1723210239132,-715.947617,0.000205,2]
[334557349,1723210239142,-280.415154,0.000205,2]
[334557350,1723210239151,-280.415154,0.000205,2]
[334557351,1723210239161,-150.112233,0.000206,4]
[334557352,1723210239171,-3802.92196681,0.000208,2]
[334557353,1723210239180,-1000.0,0.00021,21]
[334557354,1723210239189,-620.58854265,0.00021,2]
[334557355,1723210239200,-294.5666805,0.00021,2]
[334557356,1723210239212,-153.0,0.00021,2]
[334557357,1723210239221,-294.5666805,0.00021,2]
[334557358,1723210239232,-153.0,0.00021,2]
[334557359,1723210239242,-294.5666805,0.00021,2]
[334557360,1723210239253,-153.0,0.00021,2]
[334557361,1723210239263,-153.0,0.00021,2]
[334557362,1723210239272,-153.0,0.00021,2]
[334557363,1723210239285,-294.5666805,0.00021,2]
[334557364,1723210239295,-309.53684837,0.00021,2]
[334557365,1723210239304,-297.15758286,0.00021,2]
[334557366,1723210239313,-151.0,0.00021,2]
[334557367,1723210239323,-315.943635,0.00021,2]
[334557368,1723210239332,-315.943635,0.00021,2]
[334557369,1723210239341,-288.201822,0.00021,2]
[334557370,1723210239351,-288.201822,0.00021,2]
[334557371,1723210239360,-195.035622,0.00021,2]
[334557372,1723210239373,-153.0,0.00021041,2]
[334557373,1723210239382,-153.0,0.00021041,2]
[334557374,1723210239392,-308.4824419,0.00021041,2]
[334557375,1723210239402,-151.0,0.00021068,2]
[334557376,1723210239412,-151.0,0.00021068,2]
[334557377,1723210239421,-253.689052,0.00021068,2]
[334557378,1723210239431,-253.689052,0.00021068,2]
[334557379,1723210239441,-164.075261,0.00021068,2]
[334557380,1723210239451,-164.075261,0.00021068,2]
[334557381,1723210239461,-151.0,0.00021068,2]
[334557382,1723210239471,-190.333119,0.00021068,2]
[334557383,1723210239481,-190.333119,0.00021068,2]
[334557385,1723210239491,-2393.499558,0.00021068,2]
[334557387,1723210239500,-2393.499558,0.00021068,2]
[334557389,1723210239510,-186.928441,0.00021068,2]
[334557390,1723210239519,-186.928441,0.00021068,2]
[334557391,1723210239529,-715.947617,0.00021068,2]
[334557392,1723210239539,-715.947617,0.00021068,2]
[334557393,1723210239549,-280.415154,0.00021068,2]
[334557395,1723210239558,-280.415154,0.00021068,2]
[334557396,1723210239568,-799.843258,0.00021068,2]
[334557397,1723210239578,-799.843258,0.00021068,2]
[334557398,1723210239588,-153.0,0.00021078,2]
[334557399,1723210239597,-153.0,0.00021078,2]
[334557400,1723210239606,-153.0,0.00021078,2]
[334557401,1723210239618,-153.0,0.00021078,2]
[334557402,1723210239628,-153.0,0.00021078,2]
[334557403,1723210239638,-153.0,0.00021078,2]
[334557404,1723210239648,-153.0,0.00021078,2]
[334557405,1723210239658,-153.0,0.00021178,2]
[334557406,1723210239667,-3802.92196681,0.0002125,2]
[334557408,1723210239677,-150.112233,0.000213,5]
[334557410,1723210239687,-1444.60456197,0.00021599,2]
[334557412,1723210239696,-3283.43648211,0.00021642,2]
[334557414,1723210239705,-171.052786,0.00021687,2]
[334557416,1723210239715,-315.943635,0.00021687,2]
[334557418,1723210239724,-315.943635,0.00021687,2]
[334557420,1723210239736,-288.201822,0.00021687,2]
[334557422,1723210239748,-288.201822,0.00021687,2]
[334557423,1723210239759,-308.2878375,0.00021687,2]
[334557424,1723210239769,-3802.92196681,0.000217,2]
[334557425,1723210239779,-500.0,0.00021731,2]
[334557426,1723210239788,-500.0,0.00021731,2]
[334557427,1723210239798,-261.63666073,0.00021731,2]
[334557428,1723210239808,-500.0,0.00021731,2]
[334557429,1723210239819,-500.0,0.00021731,2]
[334557430,1723210239829,-457.45468198,0.00021731,2]
[334557431,1723210239838,-500.0,0.00021731,2]
[334557432,1723210239848,-500.0,0.00021731,2]
[334557433,1723210239857,-500.0,0.00021731,2]
[334557435,1723210239873,-500.0,0.00021731,2]
[334557437,1723210239882,-500.0,0.00021731,2]
[334557438,1723210239892,-500.0,0.00021731,2]
[334557439,1723210239901,-500.0,0.00021731,2]
[334557440,1723210239911,-500.0,0.00021731,2]
[334557441,1723210239920,-500.0,0.00021731,2]
[334557442,1723210239930,-500.0,0.00021731,2]
[334557443,1723210239939,-500.0,0.00021731,2]
[334557444,1723210239949,-500.0,0.00021731,2]
[334557445,1723210239958,-500.0,0.00021731,2]
[334557446,1723210239968,-500.0,0.00021731,2]
[334557447,1723210239977,-280.68512444,0.00021731,2]
[334557448,1723210239987,-500.0,0.00021731,2]
[334557449,1723210239997,-500.0,0.00021731,2]
[334557450,1723210240007,-500.0,0.00021731,2]
[334557451,1723210240017,-500.0,0.00021731,2]
[334557452,1723210240027,-500.0,0.00021731,2]
[334557453,1723210240036,-27803.51200957,0.00021732,3]
[334557480,1723210243075,-67.42230287,0.0002,2]
[334557499,1723210263832,160.539455,0.00014247,2]
[334557509,1723210791518,4731.0,0.0002333,30]
[334557512,1723211256256,160.539455,0.00014247,2]
[334557513,1723211284188,500.0,0.00025,60]
[334557515,1723211315832,500.0,0.00025,60]
[334557516,1723211329069,500.0,0.00025,60]
[334557518,1723211351777,424.17979,0.00025,60]
[334557548,1723211432712,-1364.15976013,0.00018,2]
[334557549,1723211432722,-169.221072,0.00019721,2]
[334557550,1723211432733,-300.0,0.00019999,2]
[334557551,1723211432743,-156.40122441,0.0002,2]
[334557552,1723211432752,-500.66794346,0.0002,2]
[334557553,1723211432768,-592.82530638,0.0002,2]
[334557554,1723211432779,-154.79103211,0.0002,2]
[334557555,1723211432788,-4184.36415148,0.0002,2]
[334557556,1723211432797,-294.28393168,0.0002,2]
[334557557,1723211432807,-427.27228194,0.0002,2]
[334557559,1723211432817,-345.76718269,0.0002,2]
[334557624,1723211438435,-57.25494699,0.0002,2]
[334557626,1723211438445,-154.79103211,0.0002,2]
[334557628,1723211438454,-1626.92608275,0.0002,2]
[334557630,1723211438463,-595.90587434,0.0002,2]
[334557632,1723211438479,-600.55871275,0.0002,2]
[334557673,1723211443393,-9296.6087348,0.0002,2]
[334557674,1723211443403,-336.38121722,0.0002,2]
[334557675,1723211443413,-154.77557542,0.0002,2]
[334557676,1723211443423,-1444.60456197,0.0002,2]
[334557677,1723211443437,-309.53684837,0.00021,2]
[334557678,1723211443446,-297.15758286,0.00021,2]
[334557679,1723211443456,-1000.0,0.00021,21]
[334557680,1723211443466,-153.0,0.00021,2]
[334557681,1723211443476,-153.0,0.00021,2]
[334557682,1723211443486,-153.0,0.00021,2]
[334557683,1723211443496,-207.2250634,0.00021041,2]
[334557684,1723211443506,-207.2250634,0.00021041,2]
[334557685,1723211443515,-207.2250634,0.00021041,2]
[334557686,1723211443524,-207.2250634,0.00021041,2]
[334557687,1723211443534,-207.2250634,0.00021041,2]
[334557688,1723211443544,-207.2250634,0.00021041,2]
[334557689,1723211443553,-207.2250634,0.00021041,2]
[334557690,1723211443563,-207.2250634,0.00021041,2]
[334557691,1723211443572,-207.2250634,0.00021041,2]
[334557692,1723211443583,-207.2250634,0.00021041,2]
[334557693,1723211443592,-207.2250634,0.00021041,2]
[334557694,1723211443602,-207.2250634,0.00021041,2]
[334557695,1723211443612,-207.2250634,0.00021041,2]
[334557696,1723211443622,-207.2250634,0.00021041,2]
[334557697,1723211443632,-153.0,0.00021096,2]
[334557699,1723211443646,-153.0,0.00021096,2]
[334557700,1723211443656,-294.5666805,0.00021096,2]
[334557701,1723211443667,-410.9037432,0.0002137,2]
[334557702,1723211443680,-207.2250634,0.0002137,2]
[334557703,1723211443691,-207.2250634,0.0002137,2]
[334557704,1723211443700,-267.8162636,0.00021534,2]
[334557705,1723211443710,-267.8162636,0.00021534,2]
[334557706,1723211443721,-237.93918583,0.00021534,2]
[334557724,1723211448379,-153.0,0.000214,2]
[334557725,1723211448389,-207.2250634,0.000214,2]
[334557726,1723211448399,-294.5666805,0.000214,2]
[334557727,1723211448409,-29.87707777,0.00021534,2]
[334557728,1723211448419,-267.8162636,0.00021534,2]
[334557729,1723211448431,-267.8162636,0.00021534,2]
[334557730,1723211448441,-285.9283131,0.00021534,2]
[334557731,1723211448452,-1027.26934704,0.000216,2]
[334557732,1723211464554,2026.5639194,0.00025,60]
[334557743,1723211750500,159.449407,0.00014247,2]
[334557749,1723211936653,3219.389487,0.00015,2]
[334557751,1723212248730,160.539455,0.00014247,2]
[334557786,1723212633419,-1270.04719424,0.00019177,2]
[334557788,1723212633429,-300.0,0.00019999,2]
[334557790,1723212633440,-154.79103211,0.0002,2]
[334557792,1723212633450,-427.27228194,0.0002,2]
[334557794,1723212633469,-1444.60456197,0.0002,2]
[334557796,1723212633478,-154.77557542,0.0002,2]
[334557798,1723212633488,-294.28393168,0.0002,2]
[334557800,1723212633498,-12052.75538989,0.00020095,2]
[334558122,1723212638873,-2726.87576531,0.00020095,2]
[334558123,1723212638883,-336.38121722,0.0002028,2]
[334558124,1723212638892,-1412.0,0.00020645,2]
[334558125,1723212638902,-631.77085297,0.00020947,2]
[334558126,1723212638912,-153.0,0.00020978,2]
[334558127,1723212638922,-294.5666805,0.00020978,2]
[334558128,1723212638931,-294.5666805,0.00021,2]
[334558129,1723212638941,-153.0,0.00021,2]
[334558130,1723212638951,-294.5666805,0.00021,2]
[334558131,1723212638960,-153.0,0.00021,2]
[334558132,1723212638973,-485.9218011,0.00021,2]
[334558133,1723212638982,-294.5666805,0.000211,2]
[334558134,1723212638991,-153.0,0.000211,2]
[334558135,1723212639001,-154.77557542,0.0002142,2]
[334558136,1723212639011,-153.0,0.00021562,2]
[334558137,1723212639021,-153.0,0.000216,2]
[334558138,1723212639030,-153.0,0.000216,2]
[334558139,1723212639045,-153.0,0.000216,2]
[334558140,1723212639055,-2281.75318011,0.00021664,2]
[334558141,1723212639065,-2281.75318008,0.00021684,2]
[334558142,1723212639075,-153.0,0.000217,2]
[334558143,1723212639086,-294.5666805,0.000217,2]
[334558144,1723212639095,-153.0,0.000217,2]
[334558145,1723212639105,-2281.75318008,0.00021703,2]
[334558146,1723212639116,-14522.14286794,0.00021721,11]
[334558147,1723212639126,-23126.8337257,0.00021722,3]
[334558148,1723212639136,-2281.75318008,0.00021723,2]
[334558150,1723212639145,-150.01,0.0002173,2]
[334558151,1723212639155,-2993.10206773,0.0002173,2]
[334558152,1723212639165,-761.41463453,0.00021732,2]
[334558155,1723212640608,-1238.58536547,0.00021732,2]
[334558156,1723212640618,-1209.5914818,0.00021732,3]
[334558157,1723212640831,-3165.8653561,0.00021732,3]
[334558221,1723212647910,-150.01,0.00021731,2]
[334558222,1723212647920,-2993.10206773,0.00021731,2]
[334558223,1723212647930,-63533.24724511,0.00021732,3]
[334558224,1723212647939,-2281.75318008,0.00021742,2]
[334558225,1723212647949,-3283.43648211,0.00021742,2]
[334558226,1723212647958,-23126.8337257,0.00021764,3]
[334558227,1723212647968,-1828.6563,0.00021774,2]
[334558228,1723212647985,-151.0,0.00021776,2]
[334558229,1723212647994,-241.659174,0.00021776,2]
[334558230,1723212648003,-151.0,0.00021776,2]
[334558231,1723212648013,-241.659174,0.00021776,2]
[334558232,1723212648023,-280.415154,0.00021776,2]
[334558233,1723212648033,-280.415154,0.00021776,2]
[334558234,1723212648044,-2154.149602,0.00021776,2]
[334558235,1723212648057,-2154.149602,0.00021776,2]
[334558236,1723212648068,-228.320147,0.00021776,2]
[334558237,1723212648078,-228.320147,0.00021776,2]
[334558238,1723212648087,-228.320147,0.0002178,2]
[334558239,1723212648098,-228.320147,0.0002178,2]
[334558240,1723212648109,-46253.6674514,0.0002178,3]
[334558241,1723212648118,-39546.05060278,0.0002179,11]
[334558242,1723212648129,-41713.51241085,0.0002179,7]
[334558243,1723212648140,-151.0,0.0002179,2]
[334558244,1723212648150,-151.0,0.0002179,2]
[334558245,1723212648160,-151.0,0.0002179,2]
[334558246,1723212648170,-151.0,0.0002179,2]
[334558247,1723212648180,-831.755972,0.0002179,2]
[334558248,1723212648190,-171.299807,0.0002179,2]
[334558249,1723212648200,-831.755972,0.0002179,2]
[334558250,1723212648211,-171.299807,0.0002179,2]
[334558251,1723212648221,-151.0,0.0002179,2]
[334558252,1723212648242,-151.0,0.0002179,2]
[334558253,1723212648252,-151.0,0.0002179,2]
[334558254,1723212648263,-151.0,0.0002179,2]
[334558255,1723212648273,-151.0,0.0002179,2]
[334558256,1723212648283,-151.0,0.0002179,2]
[334558257,1723212648292,-151.0,0.0002179,2]
[334558258,1723212648302,-241.659174,0.0002179,2]
[334558259,1723212648312,-241.659174,0.0002179,2]
[334558260,1723212648322,-151.0,0.0002179,2]
[334558261,1723212648331,-151.0,0.0002179,2]
[334558262,1723212648342,-241.659174,0.0002179,2]
[334558263,1723212648352,-241.659174,0.0002179,2]
[334558264,1723212648363,-280.415154,0.0002179,2]
[334558265,1723212648373,-280.415154,0.0002179,2]